fUST/lending_fUST_20251012
["ID","MTS","AMOUNT","RATE_DAILY","PERIOD"]
[390988821,1760274647179,-21200.968761,0.00017323,2]
[390988822,1760274647188,-420.0,0.00017342,2]
[390988823,1760274647197,-420.0,0.00017342,2]
[390988824,1760274647206,-420.0,0.00017342,2]
[390988825,1760274647215,-420.0,0.00017342,2]
[390988826,1760274647225,-1680.0,0.00017343,2]
[390988827,1760274647235,-1680.0,0.00017429,2]
[390988828,1760274647244,-151.0,0.000176,2]
[390988829,1760274647253,-379.59737107,0.00017662,2]
[390988830,1760274647262,-1005.13980431,0.00017808,2]
[390988831,1760274647271,-607.22,0.00017975,2]
[390988832,1760274647280,-1070.0,0.000181,4]
[390988833,1760274647290,-300.0,0.00018142,2]
[390988834,1760274647300,-300.0,0.00018142,2]
[390988835,1760274647309,-300.0,0.00018142,2]
[390988836,1760274647318,-300.0,0.00018142,2]
[390988837,1760274647327,-300.0,0.00018142,2]
[390988838,1760274647336,-300.0,0.00018142,2]
[390988839,1760274647345,-300.0,0.00018142,2]
[390988840,1760274647354,-300.0,0.00018142,2]
[390988841,1760274647363,-300.0,0.00018142,2]
[390988842,1760274647374,-300.0,0.00018142,2]
[390988843,1760274647383,-300.0,0.00018142,2]
[390988844,1760274647392,-300.0,0.00018142,2]
[390988845,1760274647401,-300.0,0.00018142,2]
[390988846,1760274647410,-300.0,0.00018142,2]
[390988847,1760274647419,-300.0,0.00018142,2]
[390988848,1760274647428,-151.0,0.000182,2]
[390988849,1760274647437,-160.0,0.000182,2]
[390988850,1760274647446,-418.86606463,0.00018262,2]
[390988851,1760274647455,-255.831238,0.00018493,2]
[390988852,1760274647465,-600.0,0.00018504,2]
[390988853,1760274647474,-338.22,0.00018673,3]
[390988854,1760274647483,-1352.86,0.00018682,3]
[390988855,1760274647492,-10163.58,0.00018683,3]
[390988856,1760274647500,-5411.46,0.00018683,3]
[390988857,1760274647512,-2705.74,0.00018683,3]
[390988858,1760274647522,-338.22,0.00018683,3]
[390988859,1760274647531,-260.0,0.00018748,2]
[390988860,1760274647540,-250.61241718,0.00018822,2]
[390988861,1760274647550,-1214.44,0.00018831,2]
[390988862,1760274647559,-458.13475819,0.00018862,2]
[390988863,1760274647568,-151.0,0.000189,2]
[390988864,1760274647577,-587.0,0.00018963,2]
[390988865,1760274647587,-444.0,0.00018963,2]
[390988866,1760274647596,-587.0,0.00018963,2]
[390988867,1760274647605,-587.0,0.00018963,2]
[390988868,1760274647614,-2351.0,0.00018964,2]
[390988869,1760274647623,-1176.1375856,0.00019034,2]
[390988870,1760274647632,-3922.6760016,0.00019149,2]
[390988871,1760274647641,-2351.0,0.00019154,2]
[390988872,1760274647650,-360.0,0.00019296,2]
[390988873,1760274647660,-392.005774,0.00019382,2]
[390988874,1760274647669,-151.0,0.000194,2]
[390988875,1760274647679,-392.005774,0.00019423,2]
[390988876,1760274647688,-783.475773,0.00019423,2]
[390988877,1760274647697,-392.005774,0.00019423,2]
[390988878,1760274647706,-392.005774,0.00019423,2]
[390988879,1760274647715,-497.40345175,0.00019462,2]
[390988880,1760274647724,-151.0,0.000195,2]
[390988881,1760274647733,-1821.66,0.00019687,2]
[390988882,1760274647742,-189.6078719,0.00019834,2]
[390988883,1760274647751,-162.8757457,0.00019834,2]
[390988884,1760274647760,-379.0970296,0.00019836,2]
[390988885,1760274647769,-189.7609727,0.00019836,2]
[390988886,1760274647779,-460.0,0.00019844,2]
[390988887,1760274647788,-151.0,0.000199,2]
[390988888,1760274647798,-1176.6992382,0.00019934,2]
[390988889,1760274647807,-11127.55484099,0.00019943,2]
[390988890,1760274647816,-1314.57617162,0.00019943,2]
[390988891,1760274647825,-194.85257669,0.0001995,2]
[390988892,1760274647835,-350.73463804,0.0001995,2]
[390988893,1760274647844,-623.5282454,0.0001995,2]
[390988894,1760274647853,-500.92734963,0.00019973,2]
[390988895,1760274647862,-500.0,0.00019973,2]
[390988896,1760274647871,-500.0,0.00019973,2]
[390988897,1760274647880,-152.81553816,0.00019973,2]
[390988898,1760274647889,-500.0,0.00019973,2]
[390988899,1760274647898,-500.0,0.00019973,2]
[390988900,1760274647907,-500.0,0.00019973,2]
[390988901,1760274647916,-500.0,0.00019973,2]
[390988902,1760274647926,-94366.94161293,0.0002,2]
[390988903,1760274647935,-676.44,0.00020043,3]
[390988904,1760274647944,-536.67214531,0.00020062,2]
[390988905,1760274647953,-1002.701972,0.00020187,2]
[390988906,1760274647962,-151.0,0.000202,3]
[390988907,1760274647972,-151.0,0.000203,3]
[390988908,1760274647981,-720.0,0.00020354,2]
[390988909,1760274647991,-560.0,0.00020392,2]
[390988910,1760274648000,-751.0,0.00020521,2]
[390988911,1760274648009,-1000.0,0.00020521,2]
[390988912,1760274648018,-1000.0,0.00020521,2]
[390988913,1760274648027,-512.99096655,0.00020521,2]
[390988914,1760274648036,-1000.0,0.00020521,2]
[390988915,1760274648044,-2428.89,0.00020543,2]
[390988916,1760274648053,-575.94083887,0.00020662,2]
[390988917,1760274648063,-502.0,0.00020736,2]
[390988918,1760274648072,-673.0,0.00020736,2]
[390988919,1760274648081,-823.0,0.00020736,2]
[390988920,1760274648090,-769.0,0.00020737,2]
[390988921,1760274648100,-163.16784853,0.0002074,3]
[390988922,1760274648109,-151.0,0.000208,4]
[390988923,1760274648118,-500.0,0.00020828,2]
[390988924,1760274648127,-151.0,0.000209,3]
[390988925,1760274648136,-417.15472785,0.00020904,3]
[390988926,1760274648146,-218.6594448,0.00020918,2]
[390988927,1760274648155,-530.42595223,0.0002094,2]
[390988928,1760274648163,-158.926823,0.00020988,3]
[390988929,1760274648173,-886008.24944003,0.00021,2]
[390988930,1760274648204,5000.0,0.00017,10]
[390988933,1760274669973,5000.0,0.00017,10]
[390988934,1760274670354,500.0,0.00030295,60]
[390988935,1760274670593,536.19,0.00030295,60]
[390988936,1760274680434,325.04163219,0.00030295,60]
[390988937,1760274693036,5000.0,0.00017,10]
[390988938,1760274701923,590.43,0.00030295,60]
[390988939,1760274703697,500.0,0.00030295,60]
[390988940,1760274703979,328.89,0.00030295,60]
[390988942,1760274711141,500.0,0.00030295,60]
[390988943,1760274715948,5000.0,0.00017,10]
[390988944,1760274720587,500.0,0.00030295,60]
[390988945,1760274720843,500.0,0.00030295,60]
[390988946,1760274724134,500.0,0.00030295,60]
[390988947,1760274724383,500.0,0.00030295,60]
[390988948,1760274724625,500.0,0.00030295,60]
[390988949,1760274724868,500.0,0.00030295,60]
[390988950,1760274725113,500.0,0.00030295,60]
[390988951,1760274725366,500.0,0.00030295,60]
[390988952,1760274725631,500.0,0.00030295,60]
[390988953,1760274725879,500.0,0.00030295,60]
[390988954,1760274726125,500.0,0.00030295,60]
[390988955,1760274726372,500.0,0.00030295,60]
[390988956,1760274726617,500.0,0.00030295,60]
[390988957,1760274726890,234.64,0.00030295,60]
[390989042,1760274730184,500.0,0.00030295,60]
[390989043,1760274730424,500.0,0.00030295,60]
[390989044,1760274730683,307.3,0.00030295,60]
[390989072,1760274738975,5000.0,0.00017,10]
[390989075,1760274744717,500.0,0.00030295,60]
[390989076,1760274744980,500.0,0.00030295,60]
[390989077,1760274745036,500.0,0.00030295,60]
[390989078,1760274745288,500.0,0.00030295,60]
[390989079,1760274745540,500.0,0.00030295,60]
[390989080,1760274745791,500.0,0.00030295,60]
[390989081,1760274746044,500.0,0.00030295,60]
[390989082,1760274746294,181.3,0.00030295,60]
[390989083,1760274747608,500.0,0.00030295,60]
[390989084,1760274749004,500.0,0.00030295,60]
[390989085,1760274749268,535.46,0.00030295,60]
[390989086,1760274750571,495.24,0.00030295,60]
[390989087,1760274754109,500.0,0.00030295,60]
[390989088,1760274754484,500.0,0.00030295,60]
[390989089,1760274755087,500.0,0.00030295,60]
[390989090,1760274755215,500.0,0.00030295,60]
[390989091,1760274756343,500.0,0.00030295,60]
[390989092,1760274756595,500.0,0.00030295,60]
[390989093,1760274756765,500.0,0.00030295,60]
[390989094,1760274756961,500.0,0.00030295,60]
[390989095,1760274757023,500.0,0.00030295,60]
[390989096,1760274757082,500.0,0.00030295,60]
[390989097,1760274757197,500.0,0.00030295,60]
[390989098,1760274757257,500.0,0.00030295,60]
[390989099,1760274757317,500.0,0.00030295,60]
[390989100,1760274757378,500.0,0.00030295,60]
[390989101,1760274757489,623.93,0.00030295,60]
[390989102,1760274757555,600.64,0.00030295,60]
[390989103,1760274757625,500.0,0.00030295,60]
[390989104,1760274757686,164.61,0.00030295,60]
[390989105,1760274757796,500.0,0.00030295,60]
[390989106,1760274758010,500.0,0.00030295,60]
[390989107,1760274758279,645.93,0.00030295,60]
[390989108,1760274761880,5000.0,0.00017,10]
[390989109,1760274770432,500.0,0.00030295,60]
[390989110,1760274770665,500.0,0.00030295,60]
[390989111,1760274770909,500.0,0.00030295,60]
[390989112,1760274771195,500.0,0.00030295,60]
[390989113,1760274771432,500.0,0.00030295,60]
[390989114,1760274771674,500.0,0.00030295,60]
[390989115,1760274771921,500.0,0.00030295,60]
[390989116,1760274772190,333.18,0.00030295,60]
[390989117,1760274775549,500.0,0.00030295,60]
[390989118,1760274775790,500.0,0.00030295,60]
[390989119,1760274776032,505.86,0.00030295,60]
[390989120,1760274778852,500.0,0.00030295,60]
[390989121,1760274779095,500.0,0.00030295,60]
[390989122,1760274779339,508.08,0.00030295,60]
[390989123,1760274780855,500.0,0.00030295,60]
[390989124,1760274781266,500.0,0.00030295,60]
[390989125,1760274781432,607.2,0.00030295,60]
[390989126,1760274781956,500.0,0.00030295,60]
[390989127,1760274782199,500.0,0.00030295,60]
[390989128,1760274782434,500.0,0.00030295,60]
[390989129,1760274782704,500.0,0.00030295,60]
[390989130,1760274782951,500.0,0.00030295,60]
[390989131,1760274783193,500.0,0.00030295,60]
[390989132,1760274783420,382.64,0.00030295,60]
[390989133,1760274784534,5000.0,0.00017,10]
[390989134,1760274785107,500.0,0.00030295,60]
[390989135,1760274785217,500.0,0.00030295,60]
[390989136,1760274785361,500.0,0.00030295,60]
[390989137,1760274785438,500.0,0.00030295,60]
[390989138,1760274791408,500.0,0.00030295,60]
[390989139,1760274791629,500.0,0.00030295,60]
[390989140,1760274791882,382.86,0.00030295,60]
[390989141,1760274792707,500.0,0.00030295,60]
[390989142,1760274792939,500.0,0.00030295,60]
[390989143,1760274793455,500.0,0.00030295,60]
[390989144,1760274793732,500.0,0.00030295,60]
[390989145,1760274794077,571.76,0.00030295,60]
[390989146,1760274795847,500.0,0.00030295,60]
[390989147,1760274796080,500.0,0.00030295,60]
[390989148,1760274796319,315.7544337,0.00030295,60]
[390989149,1760274807740,4309.06857011,0.00017,10]
[390989150,1760274807799,500.0,0.00030287,60]
[390989151,1760274808050,500.0,0.00030287,60]
[390989152,1760274808287,500.0,0.00030287,60]
[390989153,1760274808533,500.0,0.00030287,60]
[390989154,1760274808834,500.0,0.00030287,60]
[390989155,1760274809139,637.28,0.00030287,60]
[390989156,1760274817704,500.0,0.00030287,60]
[390989157,1760274817936,500.0,0.00030287,60]
[390989158,1760274829396,500.0,0.00030287,60]
[390989159,1760274829584,500.0,0.00030287,60]
[390989160,1760274829838,500.0,0.00030287,60]
[390989161,1760274830097,649.34,0.00030287,60]
[390989162,1760274830948,500.0,0.00030287,60]
[390989163,1760274831185,500.0,0.00030287,60]
[390989164,1760274831408,500.0,0.00030287,60]
[390989165,1760274831639,500.0,0.00030287,60]
[390989166,1760274831868,500.0,0.00030287,60]
[390989167,1760274832104,500.0,0.00030287,60]
[390989168,1760274832360,500.0,0.00030287,60]
[390989169,1760274832598,500.0,0.00030287,60]
[390989170,1760274832830,500.0,0.00030287,60]
[390989171,1760274833086,428.48,0.00030287,60]
[390989172,1760274833860,500.0,0.00030287,60]
[390989173,1760274835708,502.18,0.00030287,60]
[390989174,1760274837134,500.0,0.00030287,60]
[390989175,1760274837371,500.0,0.00030287,60]
[390989176,1760274837608,500.0,0.00030287,60]
[390989177,1760274837838,500.0,0.00030287,60]
[390989178,1760274838170,500.0,0.00030287,60]
[390989179,1760274838420,500.0,0.00030287,60]
[390989180,1760274838643,500.0,0.00030287,60]
[390989181,1760274838880,500.0,0.00030287,60]
[390989182,1760274839155,543.44,0.00030287,60]
[390989183,1760274840378,605.98,0.00030287,60]
[390989184,1760274842514,466.92985145,0.00030287,60]
[390989185,1760274842979,610.21,0.00030287,60]
[390989186,1760274846741,500.0,0.00030287,60]
[390989187,1760274846987,500.0,0.00030287,60]
[390989188,1760274847325,500.0,0.00030287,60]
[390989189,1760274847581,500.0,0.00030287,60]
[390989191,1760274847822,500.0,0.00030287,60]
[390989192,1760274848068,500.0,0.00030287,60]
[390989193,1760274848304,500.0,0.00030287,60]
[390989194,1760274848534,500.0,0.00030287,60]
[390989195,1760274848834,500.0,0.00030287,60]
[390989196,1760274849201,500.0,0.00030287,60]
[390989197,1760274849455,500.0,0.00030287,60]
[390989198,1760274849754,462.37,0.00030287,60]
[390989199,1760274850306,500.0,0.00030287,60]
[390989200,1760274850560,500.0,0.00030287,60]
[390989201,1760274850792,352.46,0.00030287,60]
[390989202,1760274856404,500.0,0.00030287,60]
[390989203,1760274856631,500.0,0.00030287,60]
[390989204,1760274862201,500.0,0.00030287,60]
[390989205,1760274862424,376.34,0.00030287,60]
[390989206,1760274866726,500.0,0.00030287,60]
[390989207,1760274866959,500.0,0.00030287,60]
[390989208,1760274867204,500.0,0.00030287,60]
[390989209,1760274867467,500.0,0.00030287,60]
[390989210,1760274867784,500.0,0.00030287,60]
[390989211,1760274868024,500.0,0.00030287,60]
[390989212,1760274868255,500.0,0.00030287,60]
[390989213,1760274868494,493.71067087,0.00030287,60]
[390989214,1760274870154,500.0,0.00030287,60]
[390989215,1760274870316,500.0,0.00030287,60]
[390989216,1760274870384,500.0,0.00030287,60]
[390989217,1760274870641,620.5,0.00030287,60]
[390989218,1760274872574,500.0,0.00030287,60]
[390989219,1760274872844,500.0,0.00030287,60]
[390989220,1760274873078,500.0,0.00030287,60]
[390989221,1760274873352,500.0,0.00030287,60]
[390989222,1760274873457,500.0,0.00030287,60]
[390989223,1760274873588,500.0,0.00030287,60]
[390989224,1760274874143,527.73815032,0.00030287,60]
[390989225,1760274874399,500.0,0.00030287,60]
[390989226,1760274874652,500.0,0.00030287,60]
[390989227,1760274875534,500.0,0.00030287,60]
[390989228,1760274875789,500.0,0.00030287,60]
[390989229,1760274887288,500.0,0.00030287,60]
[390989230,1760274887682,536.19,0.00030287,60]
[390989231,1760274902497,500.0,0.00030287,60]
[390989232,1760274902552,500.0,0.00030287,60]
[390989233,1760274902710,500.0,0.00030287,60]
[390989234,1760274902780,500.0,0.00030287,60]
[390989235,1760274904943,500.0,0.00030287,60]
[390989236,1760274905178,500.0,0.00030287,60]
[390989237,1760274907085,500.0,0.00030287,60]
[390989238,1760274907366,500.0,0.00030287,60]
[390989239,1760274911312,620.98,0.00030287,60]
[390989240,1760274912746,500.0,0.00030287,60]
[390989241,1760274912980,500.0,0.00030287,60]
[390989242,1760274926039,500.0,0.00030287,60]
[390989243,1760274926257,500.0,0.00030287,60]
[390989244,1760274926493,274.12,0.00030287,60]
[390989245,1760274928222,500.0,0.00030287,60]
[390989246,1760274928515,500.0,0.00030287,60]
[390989247,1760274928761,339.62,0.00030287,60]
[390989248,1760274930264,500.0,0.00030287,60]
[390989249,1760274930488,500.0,0.00030287,60]
[390989250,1760274930727,500.0,0.00030287,60]
[390989251,1760274930977,258.04,0.00030287,60]
[390989252,1760274942403,1996.999999,0.00030287,120]
[390989253,1760274944275,178.746595,0.00017706,31]
[390989254,1760274944522,178.746595,0.00017706,61]
[390989255,1760274944743,178.746595,0.00017706,90]
[390989256,1760274944985,178.746595,0.00017706,120]
[390989257,1760274950875,500.0,0.00030287,60]
[390989258,1760274954823,500.0,0.00030287,60]
[390989259,1760274955105,500.0,0.00030287,60]
[390989260,1760274958864,500.0,0.00030287,60]
[390989261,1760274959118,551.46,0.00030287,60]
[390989262,1760274961183,500.0,0.00030287,60]
[390989263,1760274961432,500.0,0.00030287,60]
[390989264,1760274966131,500.0,0.00030287,60]
[390989265,1760274966348,500.0,0.00030287,60]
[390989266,1760274966568,500.0,0.00030287,60]
[390989267,1760274966803,500.0,0.00030287,60]
[390989268,1760274967046,476.72,0.00030287,60]
[390989269,1760274969493,500.0,0.00030287,60]
[390989270,1760274969553,500.0,0.00030287,60]
[390989271,1760274969739,500.0,0.00030287,60]
[390989272,1760274973906,500.0,0.00030287,60]
[390989273,1760274974144,500.0,0.00030287,60]
[390989274,1760274974375,623.93,0.00030287,60]
[390989275,1760274975273,500.0,0.00030287,60]
[390989276,1760274975579,500.0,0.00030287,60]
[390989277,1760274975803,195.6,0.00030287,60]
[390989278,1760274976925,500.0,0.00030287,60]
[390989279,1760274977177,500.0,0.00030287,60]
[390989280,1760274977476,500.0,0.00030287,60]
[390989281,1760274986921,500.0,0.00030287,60]
[390989282,1760274987186,500.0,0.00030287,60]
[390989283,1760274991368,623.9,0.00030287,60]
[390989284,1760274997377,500.0,0.00030287,60]
[390989285,1760275002071,500.0,0.00030287,60]
[390989286,1760275002325,500.0,0.00030287,60]
[390989287,1760275002536,500.0,0.00030287,60]
[390989288,1760275002637,500.0,0.00030287,60]
[390989289,1760275002781,500.0,0.00030287,60]
[390989290,1760275002894,500.0,0.00030287,60]
[390989291,1760275003014,500.0,0.00030287,60]
[390989292,1760275003172,500.0,0.00030287,60]
[390989293,1760275003270,500.0,0.00030287,60]
[390989294,1760275003454,500.0,0.00030287,60]
[390989295,1760275003508,282.74,0.00030287,60]
[390989296,1760275003738,538.86,0.00030287,60]
[390989297,1760275004590,5000.0,0.0001602,2]
[390989298,1760275014755,500.0,0.00030287,60]
[390989299,1760275015144,500.0,0.00030287,60]
[390989300,1760275027228,5000.0,0.0001602,2]
[390989301,1760275049853,0.01,0.0001602,2]
[390989302,1760275049879,4999.99,0.0001602,2]
[390989303,1760275063510,-212.68401908,0.0001602,2]
[390989304,1760275063532,-31.11052205,0.00016074,2]
[390989305,1760275072716,5000.0,0.0001602,2]
[390989306,1760275096048,0.02,0.0001602,2]
[390989307,1760275096074,4999.98,0.0001602,2]
[390989308,1760275118794,5000.0,0.00016074,2]
[390989309,1760275138472,-136.01657807,0.00016074,2]
[390989310,1760275138494,-238.34544461,0.00016174,2]
[390989311,1760275141817,5000.0,0.00016074,2]
[390989312,1760275143176,500.0,0.00030253,60]
[390989313,1760275143403,500.0,0.00030253,60]
[390989314,1760275143652,500.0,0.00030253,60]
[390989315,1760275143788,-961.65455539,0.00016174,2]
[390989316,1760275143818,-300.0,0.00016174,2]
[390989317,1760275143846,-300.0,0.00016175,2]
[390989318,1760275143875,-300.0,0.00016175,2]
[390989319,1760275143904,-300.0,0.00016175,2]
[390989320,1760275143936,-300.0,0.00016175,2]
[390989321,1760275143965,-300.0,0.00016175,2]
[390989322,1760275143995,-300.0,0.00016175,2]
[390989323,1760275144025,-300.0,0.00016175,2]
[390989324,1760275144054,-300.0,0.00016175,2]
[390989325,1760275144085,-300.0,0.00016175,2]
[390989326,1760275144114,-300.0,0.00016175,2]
[390989327,1760275144143,-300.0,0.00016175,2]
[390989328,1760275144172,-300.0,0.00016175,2]
[390989329,1760275144302,500.0,0.00030253,60]
[390989330,1760275144676,-300.0,0.00016175,2]
[390989331,1760275144709,-300.0,0.00016175,2]
[390989332,1760275144742,-300.0,0.00016175,2]
[390989333,1760275144774,-600.0,0.00016175,2]
[390989334,1760275144804,-244.58662194,0.0001662,2]
[390989335,1760275144832,-151.0,0.00017,2]
[390989336,1760275144861,-276.48922481,0.0001722,2]
[390989337,1760275144889,-461.0196277,0.00017667,2]
[390989338,1760275144918,-420.0,0.0001768,2]
[390989339,1760275144947,-178.746595,0.00017706,2]
[390989340,1760275144975,-1680.0,0.00017769,2]
[390989341,1760275145042,231.62,0.00030253,60]
[390989342,1760275145144,-720.0,0.00017793,2]
[390989343,1760275145173,-308.39182767,0.0001782,2]
[390989344,1760275145203,-590.55,0.00017984,2]
[390989345,1760275145231,-340.29443053,0.0001842,2]
[390989346,1760275145257,-500.0,0.00018743,2]
[390989347,1760275145286,-1181.1,0.0001884,2]
[390989348,1760275145313,-301.06678014,0.00018952,2]
[390989349,1760275145341,-541.92020426,0.00018952,2]
[390989350,1760275145369,-69.94981834,0.00018952,2]
[390989351,1760275145408,-415.83126983,0.00018743,2]
[390989352,1760275145437,-893.46387812,0.00018952,2]
[390989353,1760275145464,-549.99866373,0.00018952,2]
[390989354,1760275145491,-989.99759471,0.00018952,2]
[390989355,1760275145517,-1759.99572393,0.00018952,2]
[390989356,1760275145554,-2749.99331865,0.00018952,2]
[390989357,1760275145581,-540.03298385,0.00018952,2]
[390989358,1760275145651,-3419.957395,0.00018952,2]
[390989359,1760275145679,-372.19703339,0.0001902,2]
[390989360,1760275145711,-587.0,0.00019327,2]
[390989361,1760275145740,-500.0,0.000194,2]
[390989362,1760275145944,-500.0,0.000194,2]
[390989363,1760275145977,-500.0,0.000194,2]
[390989364,1760275146007,-500.0,0.000194,2]
[390989365,1760275146036,-517.89405405,0.00019475,2]
[390989366,1760275146065,-500.0,0.00019475,2]
[390989367,1760275146094,-500.0,0.00019475,2]
[390989368,1760275146123,-312.41407827,0.00019475,2]
[390989369,1760275146152,-500.0,0.00019475,2]
[390989370,1760275146181,-500.0,0.00019486,2]
[390989371,1760275146209,-11.39373536,0.00019521,2]
[390989372,1760275146332,-1316.60626464,0.00019521,2]
[390989373,1760275146360,-864.0,0.00019572,2]
[390989374,1760275146388,-404.09963625,0.0001962,2]
[390989375,1760275146417,-1771.65,0.00019696,2]
[390989376,1760275146445,-287.29819822,0.00019948,2]
[390989377,1760275146691,-712.70180178,0.00019948,2]
[390989378,1760275146723,-1000.0,0.00019948,2]
[390989379,1760275146753,-1000.0,0.00019948,2]
[390989380,1760275146784,-241.96726257,0.00020021,2]
[390989381,1760275146821,-633.47339062,0.00020021,2]
[390989382,1760275146848,-420.98284078,0.00020021,2]
[390989383,1760275146876,-500.0,0.00020021,2]
[390989384,1760275146906,-481.7594085,0.00020021,2]
[390989385,1760275147036,-18.2405915,0.00020021,2]
[390989386,1760275147064,-500.0,0.00020021,2]
[390989387,1760275147093,-500.0,0.00020021,2]
[390989388,1760275147121,-500.0,0.00020021,2]
[390989389,1760275147150,-500.0,0.00020021,2]
[390989390,1760275147181,-500.0,0.00020021,2]
[390989391,1760275147211,-500.0,0.00020021,2]
[390989392,1760275147240,-500.0,0.00020021,2]
[390989393,1760275147267,-500.0,0.00020021,2]
[390989394,1760275147296,-500.0,0.00020021,2]
[390989395,1760275147326,-463.528817,0.00020021,2]
[390989396,1760275147917,500.0,0.00030253,60]
[390989397,1760275148207,500.0,0.00030253,60]
[390989398,1760275149146,-36.471183,0.00020021,2]
[390989399,1760275149176,-500.0,0.00020021,2]
[390989400,1760275149207,-500.0,0.00020021,2]
[390989401,1760275149238,-500.0,0.00020021,2]
[390989402,1760275149267,-500.0,0.00020021,2]
[390989403,1760275149296,-500.0,0.00020021,2]
[390989404,1760275149324,-500.0,0.00020021,2]
[390989405,1760275149352,-478.66431501,0.00020021,2]
[390989406,1760275149380,-500.0,0.00020021,2]
[390989407,1760275149407,-500.0,0.00020021,2]
[390989408,1760275149436,-469.73900398,0.00020021,2]
[390989409,1760275149467,-30.26099602,0.00020021,2]
[390989410,1760275149496,-500.0,0.00020021,2]
[390989411,1760275149525,-500.0,0.00020021,2]
[390989412,1760275149554,-500.0,0.00020021,2]
[390989413,1760275149581,-500.0,0.00020021,2]
[390989414,1760275149611,-500.0,0.00020021,2]
[390989415,1760275149640,-500.0,0.00020021,2]
[390989416,1760275149669,-500.0,0.00020021,2]
[390989417,1760275149700,-500.0,0.00020021,2]
[390989418,1760275149733,-300.0,0.00020021,2]
[390989419,1760275149762,-339.48800796,0.00020023,2]
[390989420,1760275149796,-660.51199204,0.00020023,2]
[390989421,1760275149825,-1000.0,0.00020023,2]
[390989422,1760275149852,-1000.0,0.00020023,2]
[390989423,1760275149879,-1000.0,0.00020034,2]
[390989424,1760275149907,-436.00223912,0.0002022,2]
[390989425,1760275149934,-585.10024119,0.0002037,2]
[390989426,1760275149972,-666.0,0.00020387,2]
[390989427,1760275149999,-1095.8058,0.00020466,2]
[390989428,1760275150026,-500.0,0.00020496,2]
[390989429,1760275150054,-500.0,0.00020496,2]
[390989430,1760275150083,-500.0,0.00020496,2]
[390989431,1760275150111,-1114.1984,0.00020553,2]
[390989432,1760275150150,-1248.0016,0.00020553,2]
[390989433,1760275150177,-500.0,0.00020571,2]
[390989434,1760275150208,-500.0,0.00020582,2]
[390989435,1760275150234,-1095.8058,0.00020676,2]
[390989436,1760275150262,-500.0,0.00020718,2]
[390989437,1760275150288,-158.0,0.0002074,3]